{"text_format":"3","workbook":"xlsx","n_sheets":5,"sheets":["Summary","Equipment","Services","NMS","Network Planning tool"],"read":"whole","date_system":"1900"}

{"sheet":"Summary","index":0,"n_rows":7,"n_cols":3,"rows_kept":7}
[]
[null,"Item","Price (ZAR)"]
[null,"Equipment",{"$f":"Equipment!F10","v":{"v":0,"d":"R0.00"}}]
[null,"Services",{"$f":"Services!F10","v":{"v":0,"d":"R0.00"}}]
[null,"NMS",{"$f":"NMS!F10","v":{"v":0,"d":"R0.00"}}]
[null,"Network Planning \ntool",{"$f":"'Network Planning tool'!F10","v":{"v":0,"d":"R0.00"}}]
[null,"Total",{"$f":"SUM(C3:C6)","v":{"v":0,"d":"R0.00"}}]

{"sheet":"Equipment","index":1,"n_rows":31,"n_cols":60,"rows_kept":31}
[]
[null,"OTN/DWDM Equipment"]
[null,"Number","Item Description","Unit Price (ZAR) ","Quantity","Total Amount (ZAR)","Beitbridge","Polokwane","Soekmekaar","Kaapmuiden","Komatipoort","Nelspruit","Emalahleni","NZASM (Tshwane)","Minerva","Isando Teraco","North Station (NSB)","Pretoria West","Business Connexion (BCX)","Camden ","Newcastle","Chilveston","Pietermaritzburg","Durban Teraco","Mthunzini","Rayton","Geluksplaas","Piet Retief","Mahamba","Camden Incandu","Pegasus","Umfolozi","Ulundi","Umunywana","Athene","Umhlanga Data Centre","Stanger","Durban","Estcourt","Ladysmith","Heidelberg","Standerton","Musina","Louis Trichardt","Tzaneen","Gravelotte","Hoedspruit","Hazyview","Ngodwana","Belfast","Middelburg","Pretoria North","Bela-Bela","Modimolle","Mokopane","Megawatt Park","IS Bryaston","IS Parklands","Pretoria\nEast","Neotel Data\nCentre"]
[null,1,{"$nulls":3},{"$f":"D4*E4","v":{"v":0,"d":"R0.00"}}]
[null,2,{"$nulls":3},{"v":0,"d":"R0.00"}]
[null," ·  ",{"$nulls":3},{"v":0,"d":"R0.00"}]
[null," ·  ",{"$nulls":3},{"v":0,"d":"R0.00"}]
[null," ·  ",{"$nulls":3},{"v":0,"d":"R0.00"}]
[null,"n",{"$nulls":3},{"v":0,"d":"R0.00"}]
[null,"TOTAL",{"$nulls":3},{"$f":"SUM(F4:F9)","v":{"v":0,"d":"R0.00"}}]
{"$rows_empty":20}
[{"$nulls":6},{"$f":"SUM(G4:G30)","v":0},0,0,0,0,0,0,0,0,0,0,0,0,0,0,0,0,0,0,0,0,0,0,0,0,0,0,0,0,0,0,0,0,0,0,0,0,0,0,0,0,0,0,0,0,0,0,0,0,0,0,0,0,0]

{"sheet":"Services","index":2,"n_rows":31,"n_cols":60,"rows_kept":31}
[]
[null,"Services "]
[null,"Number","Item Description","Unit Price (ZAR) ","Quantity","Total Amount (ZAR)","Beitbridge","Polokwane","Soekmekaar","Kaapmuiden","Komatipoort","Nelspruit","Emalahleni","NZASM (Tshwane)","Minerva","Isando Teraco","North Station (NSB)","Pretoria West","Business Connexion (BCX)","Camden ","Newcastle","Chilveston","Pietermaritzburg","Durban Teraco","Mthunzini","Rayton","Geluksplaas","Piet Retief","Mahamba","Camden Incandu","Pegasus","Umfolozi","Ulundi","Umunywana","Athene","Umhlanga Data Centre","Stanger","Durban","Estcourt","Ladysmith","Heidelberg","Standerton","Musina","Louis Trichardt","Tzaneen","Gravelotte","Hoedspruit","Hazyview","Ngodwana","Belfast","Middelburg","Pretoria North","Bela-Bela","Modimolle","Mokopane","Megawatt Park","IS Bryaston","IS Parklands","Pretoria\nEast","Neotel Data\nCentre"]
[null,1,{"$nulls":3},{"$f":"D4*E4","v":{"v":0,"d":"R0.00"}}]
[null,2,{"$nulls":3},{"v":0,"d":"R0.00"}]
[null," ·  ",{"$nulls":3},{"v":0,"d":"R0.00"}]
[null," ·  ",{"$nulls":3},{"v":0,"d":"R0.00"}]
[null," ·  ",{"$nulls":3},{"v":0,"d":"R0.00"}]
[null,"n",{"$nulls":3},{"v":0,"d":"R0.00"}]
[null,"TOTAL",{"$nulls":3},{"$f":"SUM(F4:F9)","v":{"v":0,"d":"R0.00"}}]
{"$rows_empty":20}
[{"$nulls":6},{"$f":"SUM(G4:G30)","v":0},0,0,0,0,0,0,0,0,0,0,0,0,0,0,0,0,0,0,0,0,0,0,0,0,0,0,0,0,0,0,0,0,0,0,0,0,0,0,0,0,0,0,0,0,0,0,0,0,0,0,0,0,0]

{"sheet":"NMS","index":3,"n_rows":10,"n_cols":6,"rows_kept":10}
[]
[null,"Network Mangement System"]
[null,"Number","Item Description","Unit Price (ZAR) ","Quantity","Total Amount (ZAR)"]
[null,1,{"$nulls":3},{"$f":"D4*E4","v":{"v":0,"d":"R0.00"}}]
[null,2,{"$nulls":3},{"v":0,"d":"R0.00"}]
[null," ·  ",{"$nulls":3},{"v":0,"d":"R0.00"}]
[null," ·  ",{"$nulls":3},{"v":0,"d":"R0.00"}]
[null," ·  ",{"$nulls":3},{"v":0,"d":"R0.00"}]
[null,"n",{"$nulls":3},{"v":0,"d":"R0.00"}]
[null,"TOTAL",{"$nulls":3},{"$f":"SUM(F4:F9)","v":{"v":0,"d":"R0.00"}}]

{"sheet":"Network Planning tool","index":4,"n_rows":10,"n_cols":6,"rows_kept":10}
[]
[null,"Network Planning Tool"]
[null,"Number","Item Description","Unit Price (ZAR) ","Quantity","Total Amount (ZAR)"]
[null,1,{"$nulls":3},{"$f":"D4*E4","v":{"v":0,"d":"R0.00"}}]
[null,2,{"$nulls":3},{"v":0,"d":"R0.00"}]
[null," ·  ",{"$nulls":3},{"v":0,"d":"R0.00"}]
[null," ·  ",{"$nulls":3},{"v":0,"d":"R0.00"}]
[null," ·  ",{"$nulls":3},{"v":0,"d":"R0.00"}]
[null,"n",{"$nulls":3},{"v":0,"d":"R0.00"}]
[null,"TOTAL",{"$nulls":3},{"$f":"SUM(F4:F9)","v":{"v":0,"d":"R0.00"}}]